bitfinex/quotes_SOLUSD_20240613
["timestamp","ask_amount","ask_price","bid_price","bid_amount"]
[1718298089754,0.34,147.83,147.79,2.5034]
[1718298090346,0.17,147.83,147.8,2.5033]
[1718298090581,0.34,147.84,147.8,2.5033]
[1718298090875,0.34,147.84,147.79,2.5034]
[1718298090876,2.8427,147.84,147.79,2.5034]
[1718298091081,0.34,147.83,147.79,2.5034]
[1718298091251,2.673,147.82,147.75,10.0165]
[1718298091569,0.17,147.82,147.78,2.5037]
[1718298091773,0.34,147.82,147.79,2.5035]
[1718298091973,16.6111,147.84,147.82,2.5029]
[1718298092149,16.6111,147.84,147.8,2.5032]
[1718298092458,16.6111,147.84,147.82,2.503]
[1718298092861,6.4795,147.85,147.82,2.503]
[1718298094859,6.4795,147.85,147.81,2.5031]
[1718298095956,6.4795,147.85,147.82,2.503]
[1718298096469,6.4795,147.85,147.81,2.5031]
[1718298097979,2.5029,147.83,147.79,20.0]
[1718298098277,3.0127,147.84,147.79,2.5035]
[1718298098485,3.0127,147.84,147.79,22.5035]
[1718298099074,2.5029,147.83,147.78,22.5036]
[1718298099292,3.0127,147.84,147.79,2.5035]
[1718298099452,0.51,147.84,147.8,2.5033]
[1718298099655,0.51,147.84,147.79,2.5034]
[1718298099956,3.0127,147.84,147.79,2.5034]
[1718298100379,48.0127,147.84,147.79,2.5034]
[1718298101280,2.5029,147.83,147.78,22.5036]
[1718298101878,45.51,147.84,147.78,22.5036]
[1718298102057,0.17,147.82,147.78,2.5036]
[1718298102257,0.51,147.82,147.78,2.5036]
[1718298102487,0.17,147.83,147.79,2.5034]
[1718298102785,45.68,147.84,147.8,2.5033]
[1718298102988,0.8410199,147.86,147.83,2.5028]
[1718298103205,0.8410199,147.86,147.84,2.5026]
[1718298103487,0.8410199,147.86,147.81,20.0]
[1718298103657,3.3434199,147.86,147.81,22.5031]
[1718298104182,3.3434199,147.86,147.81,2.5031]
[1718298105060,0.8410199,147.86,147.82,0.02713037]
[1718298105275,3.3433199,147.86,147.82,0.02713037]
[1718298105485,0.17,147.85,147.82,0.02713037]
[1718298105774,0.51,147.85,147.82,0.02713037]
[1718298108031,48.0125,147.85,147.82,0.02713037]
[1718298108320,0.17,147.84,147.82,0.02713037]
[1718298111281,45.51,147.85,147.82,0.02713037]
[1718298112907,2.5027,147.84,147.82,0.02713037]
[1718298113107,48.0126,147.85,147.82,0.02713037]
[1718298113408,45.51,147.85,147.82,0.02713037]
[1718298113917,48.0125,147.85,147.82,0.02713037]
[1718298114988,0.17,147.84,147.82,0.02713037]
[1718298115189,0.17,147.83,147.82,0.02713037]
[1718298117987,0.51,147.83,147.82,0.02713037]
[1718298118186,45.68,147.83,147.82,0.02713037]
[1718298118912,48.1828,147.83,147.82,0.02713037]
[1718298119101,45.68,147.83,147.82,0.02713037]
[1718298119305,0.8410199,147.86,147.85,7.5075]
[1718298119513,0.8410199,147.86,147.85,15.9675]
[1718298119816,0.8410199,147.86,147.85,43.4751]
[1718298120321,0.8410199,147.86,147.85,35.9675]
[1718298120527,0.8410199,147.86,147.85,30.9625]
[1718298121721,0.8410199,147.86,147.84,2.5026]
[1718298121934,0.8410199,147.86,147.85,10.9625]
[1718298122926,0.8410199,147.86,147.85,2.5025]
[1718298123102,0.8410199,147.86,147.85,40.5916]
[1718298123306,253.1,147.94,147.87,5.0041]
[1718298123640,25.3518,147.96,147.9,2.5015]
[1718298124126,25.3518,147.96,147.89,2.52881752]
[1718298124428,25.3518,147.96,147.9,2.52861569]
[1718298124616,148.2011,147.96,147.91,0.02711386]
[1718298124811,2.5012,147.93,147.91,0.02711386]
[1718298125211,5.0018,147.95,147.91,0.02711386]
[1718298125437,125.1834,147.92,147.91,0.02711386]
[1718298125644,170.6934,147.92,147.91,0.02711386]
[1718298125818,170.6934,147.92,147.81,16.054]
[1718298125819,0.17,147.91,147.82,0.02713037]
[1718298126000,2.5016,147.9,147.85,2.5024]
[1718298126313,0.51,147.89,147.86,0.02712303]
[1718298127133,0.51,147.89,147.86,2.52932303]
[1718298127732,0.51,147.89,147.86,0.02712303]
[1718298128910,0.51,147.89,147.86,0.02712303]
[1718298129304,3.0119,147.89,147.86,0.02712303]
[1718298129500,0.51,147.89,147.86,0.02712303]
[1718298130532,5.0028,147.92,147.86,0.02712303]
[1718298130533,2.5014,147.92,147.86,0.02712303]
[1718298130738,2.5014,147.92,147.87,2.5021]
[1718298131051,25.35,147.95,147.86,0.02712303]
[1718298131338,17.506,147.95,147.86,0.02712303]
[1718298131562,0.17,147.92,147.86,0.02712303]
[1718298131707,0.17,147.89,147.86,0.02712303]
[1718298132040,0.51,147.89,147.86,0.02712303]
[1718298132215,2.6721,147.87,147.86,0.02712303]
[1718298132411,3.1821,147.87,147.86,0.02712303]
[1718298132614,0.68,147.87,147.86,0.02712303]
[1718298132824,146.894,147.94,147.86,0.02712303]
[1718298133008,0.17,147.88,147.86,0.02712303]
[1718298133843,3.3409199,148.01,147.87,15.1784]
[1718298134054,2.5,148.0,147.93,5.0022]
[1718298134211,0.8410199,148.01,147.91,7.5041]
[1718298134212,2.5002,147.99,147.91,12.5069]
[1718298134537,2.5002,147.99,147.94,2.5009]
[1718298134740,0.8410199,148.01,147.9,10.0067]
[1718298134741,108.3406199,148.01,147.9,10.0067]
[1718298135035,108.3406199,148.01,147.89,5.03051752]
[1718298135036,2.5008,147.96,147.91,2.52851386]
[1718298135219,0.8410199,148.01,147.91,0.02711386]
[1718298135465,2.5005,147.97,147.92,2.5012]
[1718298135959,2.5005,147.97,147.93,2.5011]
[1718298136165,2.5005,147.97,147.92,2.5012]
[1718298136370,2.5007,147.96,147.92,2.5012]
[1718298136561,2.8406,147.96,147.91,2.52851386]
[1718298137356,2.8406,147.96,147.92,2.5013]
[1718298137583,2.8406,147.96,147.91,2.52851386]
[1718298138073,2.5005,147.97,147.92,2.5012]
[1718298138371,2.5004,147.98,147.93,2.5011]
[1718298138574,2.5005,147.97,147.92,2.5012]
[1718298138775,2.5003,147.98,147.91,20.02711386]
[1718298138978,2.5,148.0,147.95,2.5007]
[1718298139468,2.5001,147.99,147.95,2.5007]
[1718298139664,2.5001,147.99,147.92,17.5093]
[1718298139665,2.5001,147.99,147.94,2.5009]
[1718298139863,2.5001,147.99,147.91,25.02991386]
[1718298139864,2.5013,147.92,147.91,0.02711386]
[1718298140066,30.3516,147.96,147.91,0.02711386]
[1718298140371,2.5011,147.94,147.91,0.02711386]
[1718298140587,0.17,147.93,147.91,0.02711386]
[1718298140747,0.51,147.93,147.91,0.02711386]
[1718298140947,3.0113,147.93,147.91,0.02711386]
[1718298141155,0.51,147.93,147.91,0.02711386]
[1718298141369,3.0112,147.93,147.91,0.02711386]
[1718298141745,2.6713,147.92,147.91,0.02711386]
[1718298141948,45.34,147.92,147.91,0.02711386]
[1718298142144,48.0113,147.92,147.91,0.02711386]
[1718298142548,45.51,147.92,147.91,0.02711386]
[1718298142969,47.6713,147.92,147.91,0.02711386]
[1718298143177,48.0113,147.92,147.91,0.02711386]
[1718298144163,45.51,147.92,147.91,0.02711386]
[1718298144369,48.0113,147.92,147.91,0.02711386]
[1718298144771,45.51,147.92,147.91,0.02711386]
[1718298145483,5.0009,147.98,147.91,2.52851386]
[1718298145658,2.5008,147.95,147.91,0.02711386]
[1718298145863,5.0013,147.96,147.91,0.02711386]
[1718298146195,2.501,147.94,147.91,0.02711386]
[1718298146356,2.5012,147.93,147.91,0.02711386]
[1718298146580,10.0031,147.96,147.91,0.02711386]
[1718298146776,2.6713,147.92,147.91,0.02711386]
[1718298146979,2.8413,147.92,147.91,0.02711386]
[1718298147583,3.0113,147.92,147.91,0.02711386]
[1718298147790,8.014,147.92,147.91,0.02711386]
[1718298147976,48.0113,147.92,147.91,0.02711386]
[1718298150799,0.51,147.92,147.91,0.02711386]
[1718298151011,5.0018,147.95,147.91,0.02711386]
[1718298151307,2.5012,147.93,147.91,0.02711386]
[1718298151596,30.3513,147.97,147.91,0.02711386]
[1718298151806,2.5007,147.96,147.91,2.52851386]
[1718298151982,2.5008,147.95,147.91,2.52851386]
[1718298152176,100.0,147.98,147.91,0.02711386]
[1718298152370,2.5012,147.93,147.91,0.02711386]
[1718298153176,48.0111,147.94,147.91,0.02711386]
[1718298153376,0.17,147.94,147.91,0.02711386]
[1718298153597,2.5008,147.95,147.91,2.52851386]
[1718298153796,2.501,147.94,147.91,0.02711386]
[1718298154314,2.5005,147.97,147.91,0.02711386]
[1718298154482,2.5005,147.97,147.92,2.5012]
[1718298155093,2.5007,147.96,147.92,2.5012]
[1718298155287,2.5005,147.97,147.93,2.5011]
[1718298155483,2.5003,147.98,147.94,2.5009]
[1718298156575,2.5001,148.0,147.93,5.0023]
[1718298156801,2.5001,148.0,147.96,2.5006]
[1718298157100,2.5001,147.99,147.95,2.5007]
[1718298157308,2.5001,148.0,147.96,2.5006]
[1718298157492,0.8410199,148.01,147.94,5.0019]
[1718298157493,3.3409199,148.01,147.94,12.5047]
[1718298157678,3.3409199,148.01,147.96,2.5006]
[1718298157879,0.8410199,148.01,147.96,6.4145]
[1718298158083,0.8410199,148.01,148.0,7.5]
[1718298158302,0.8410199,148.01,148.0,27.5]
[1718298158504,0.8410199,148.01,148.0,2.5]
[1718298158706,0.8410199,148.01,147.99,22.5]
[1718298158877,0.8410199,148.01,147.99,20.0]
[1718298159082,0.8410199,148.01,148.0,2.5]
[1718298159606,0.8410199,148.01,147.99,2.5]
[1718298159789,0.8410199,148.01,148.0,2.5]
[1718298159993,0.8410199,148.01,147.98,2.5003]
[1718298160376,0.8410199,148.01,147.97,18.0912]
[1718298160582,0.8410199,148.01,147.83,100.0]
[1718298160583,0.17,148.0,147.93,15.4561]
[1718298160782,2.5003,147.98,147.93,17.9572]
[1718298161077,0.8410199,148.01,147.98,2.5003]
[1718298161277,0.8410199,148.01,147.99,2.5]
[1718298161807,0.8410199,148.01,147.98,2.5002]
[1718298162008,0.8410199,148.01,147.97,2.5004]
[1718298162304,0.8410199,148.01,147.96,5.0011]
[1718298162711,0.8410199,148.01,147.99,2.5001]
[1718298162915,7.4964,148.07,147.99,12.5005]
[1718298162916,2.4989,148.07,147.99,12.5005]
[1718298163086,4.9971,148.09,148.01,2.4997]
[1718298163286,4.9973,148.08,148.0,2.4999]
[1718298163486,4.9973,148.08,147.98,22.5428]
[1718298163487,2.4989,148.06,148.01,2.4996]
[1718298163700,2.4989,148.06,147.99,25.0002]
[1718298163902,2.4989,148.07,148.01,2.4997]
[1718298164107,2.4989,148.07,148.02,2.4996]
[1718298164601,2.499,148.06,148.01,2.4997]
[1718298164800,2.499,148.06,147.99,32.5006]
[1718298164801,2.4991,148.05,147.99,25.0002]
[1718298164991,2.4991,148.05,148.0,2.4999]
[1718298165315,2.499,148.06,148.01,2.4997]
[1718298165714,2.4988,148.07,148.02,2.4996]
[1718298166212,253.1,148.1,148.01,4.9994]
[1718298166393,2.4985,148.09,148.04,2.4992]
[1718298166593,265.5917,148.1,148.02,2.4995]
[1718298166909,2.4988,148.07,148.02,2.4995]
[1718298167497,2.499,148.06,148.0,4.9998]
[1718298167801,2.4989,148.07,148.02,2.4996]
[1718298168004,2.4989,148.07,148.03,2.4994]
[1718298168224,253.1,148.1,148.01,7.4993]
[1718298168393,3.0085,148.09,148.02,4.9991]
[1718298168595,2.4986,148.08,148.03,2.4994]
[1718298168898,2.4986,148.08,148.04,2.4993]
[1718298169134,2.4986,148.08,148.03,2.4994]
[1718298169316,0.51,148.09,148.04,2.4992]
[1718298169617,2.4987,148.08,148.03,2.4994]
[1718298170123,2.4988,148.07,148.02,2.4995]
[1718298170299,258.0966,148.1,148.0,17.4992]
[1718298170621,0.17,148.07,147.99,20.0]
[1718298170823,0.17,148.07,148.0,2.4998]
[1718298170824,2.4992,148.05,148.0,2.4998]
[1718298171002,2.499,148.06,148.01,2.4997]
[1718298171208,2.4989,148.06,148.01,2.4997]
[1718298171412,2.4989,148.06,148.0,4.9998]
[1718298171717,2.4989,148.06,148.01,2.4997]
[1718298172234,2.4988,148.07,148.02,2.4996]
[1718298172403,2.499,148.06,148.01,2.4997]
[1718298173094,0.17,148.08,148.02,2.4995]
[1718298173295,2.4988,148.07,148.02,2.4995]
[1718298173797,0.17,148.08,147.99,20.0]
[1718298174103,2.6693,148.04,147.99,2.5]
[1718298174608,0.17,148.04,147.98,16.4583]
[1718298174822,10.5078,148.04,147.98,16.4583]
[1718298175019,2.4997,148.02,147.98,18.9586]
[1718298175323,3.0094,148.04,147.99,2.5]
[1718298175504,2.4995,148.03,147.98,18.9585]
[1718298175892,2.4997,148.02,147.98,16.4583]
[1718298176128,2.4999,148.01,147.98,16.4583]
[1718298176804,2.4995,148.03,147.98,18.9586]
[1718298177596,2.4993,148.04,147.99,2.5]
[1718298177915,2.4995,148.03,147.99,2.5]
[1718298178127,2.4995,148.03,147.98,18.9585]
[1718298178693,0.17,148.04,147.98,18.9585]
[1718298178916,2.4995,148.03,147.98,18.9585]
[1718298179708,9.9964,148.06,147.98,18.9585]
[1718298179709,4.9978,148.07,147.98,26.4594]
[1718298179889,4.9972,148.09,148.02,2.4996]
[1718298180101,2.499,148.06,148.01,2.4997]
[1718298180304,2.4991,148.05,148.0,2.4999]
[1718298180514,2.499,148.06,148.01,2.4998]
[1718298180719,2.499,148.06,148.02,2.4996]
[1718298180906,2.4991,148.05,147.99,5.0002]
[1718298181621,2.4991,148.05,148.01,2.4997]
[1718298182219,2.4989,148.07,147.98,16.4583]
[1718298182418,2.6687,148.08,148.03,2.4994]
[1718298182619,2.4988,148.07,148.02,2.4995]
[1718298182812,0.34,148.09,148.04,2.4992]
[1718298183009,2.4987,148.08,148.04,2.4992]
[1718298183205,2.4987,148.08,148.03,2.4993]
[1718298183416,2.4988,148.07,148.03,2.4993]
[1718298183624,2.4988,148.07,148.02,2.4995]
[1718298183841,2.499,148.06,148.01,2.4997]
[1718298184535,2.4988,148.07,148.02,2.4996]
[1718298185426,2.499,148.06,148.01,2.4997]
[1718298185634,2.6689,148.07,148.02,2.4995]
[1718298186020,2.499,148.06,147.99,14.0376]
[1718298186228,2.499,148.06,148.01,2.4997]
[1718298186414,2.4987,148.08,148.03,2.4993]
[1718298186732,2.4988,148.07,148.03,2.4993]
[1718298186939,2.4988,148.07,148.03,2.4994]
[1718298187323,2.4987,148.08,148.03,2.4994]
[1718298187526,0.17,148.07,148.03,2.4994]
[1718298187728,2.4987,148.08,148.04,2.4992]
[1718298187925,2.4988,148.07,148.03,2.4994]
[1718298188129,2.4988,148.07,148.02,2.4995]
[1718298188532,2.4988,148.07,148.03,2.4994]
[1718298188916,2.4988,148.07,148.01,4.9996]
[1718298189117,2.4987,148.08,148.03,2.4994]
[1718298189419,2.8385,148.09,148.04,2.4993]
[1718298189740,2.4985,148.09,148.05,2.499]
[1718298189942,2.4985,148.09,148.05,2.4991]
[1718298190124,2.4983,148.1,148.04,4.9986]
[1718298190322,2.4983,148.1,148.06,2.4989]
[1718298190537,2.4983,148.1,148.04,4.9986]
[1718298190538,2.4985,148.09,148.04,2.4992]
[1718298191121,2.4986,148.08,148.04,2.4992]
[1718298191322,2.4986,148.08,148.03,2.4993]
[1718298191521,2.4989,148.07,148.0,34.9993]
[1718298191716,2.4989,148.07,148.0,29.9996]
[1718298192119,0.17,148.1,148.04,2.4992]
[1718298192445,2.4988,148.07,148.02,2.4996]
[1718298192623,2.4987,148.08,148.02,2.4996]
[1718298192825,0.17,148.08,148.02,2.4996]
[1718298193025,0.17,148.08,147.99,6.5372]
[1718298193026,2.4995,148.03,147.99,6.5372]
[1718298193225,12.6649,148.06,147.98,16.4583]
[1718298193226,0.17,148.06,147.98,16.4583]
[1718298193424,45.68,148.06,147.98,16.4583]
[1718298193631,3.179,148.06,147.98,16.4583]
[1718298193850,48.179,148.06,148.0,2.4999]
[1718298194353,0.68,148.06,147.98,16.4583]
[1718298194543,3.179,148.06,147.98,16.4583]
[1718298194714,3.179,148.06,148.0,2.4999]
[1718298195027,2.4991,148.05,148.0,2.4999]
[1718298195235,2.4991,148.05,147.99,2.5]
[1718298195432,2.4991,148.05,148.0,2.4999]
[1718298195844,2.4991,148.05,147.99,2.5001]
[1718298196039,2.4993,148.04,147.99,2.5001]
[1718298196753,2.4993,148.04,147.98,18.9585]
[1718298197055,2.4995,148.03,147.98,16.4583]
[1718298197351,5.1687,148.04,147.98,16.4583]
[1718298197562,5.1687,148.04,147.99,2.5001]
[1718298197563,0.17,148.03,147.99,2.5001]
[1718298197857,0.17,148.02,147.97,2.5003]
[1718298198062,2.6696,148.02,147.97,2.5003]
[1718298198242,2.6696,148.02,147.98,2.5002]
[1718298198243,0.17,148.02,147.98,2.5002]
[1718298198557,0.17,148.02,147.97,2.5004]
[1718298198857,2.6696,148.02,147.97,2.5004]
[1718298199026,0.17,148.02,147.98,2.5003]
[1718298199652,0.34,148.03,147.98,2.5002]
[1718298199858,2.6695,148.03,147.98,2.5002]
[1718298200157,0.17,148.02,147.98,2.5002]
[1718298200375,0.17,148.02,147.96,20.0]
[1718298200556,3.0097,148.02,147.97,2.5004]
[1718298200751,0.17,148.01,147.94,15.1606]
[1718298200939,3.0099,148.01,147.96,2.5005]
[1718298201260,2.5,148.0,147.95,2.5007]
[1718298201450,2.5,148.0,147.94,15.1606]
[1718298201651,2.5,148.0,147.95,2.5007]
[1718298202169,0.17,147.99,147.92,5.0026]
[1718298202383,0.17,147.99,147.93,5.0022]
[1718298202555,0.17,147.99,147.95,2.5007]
[1718298203043,2.6701,147.99,147.94,2.5009]
[1718298203252,2.5004,147.98,147.93,2.501]
[1718298203455,2.5003,147.98,147.93,2.501]
[1718298203648,2.6701,147.99,147.94,2.501]
[1718298203843,2.5003,147.98,147.93,2.501]
[1718298204038,2.5003,147.98,147.93,2.5011]
[1718298204439,2.6701,147.99,147.94,2.5009]
[1718298204640,2.5004,147.98,147.93,2.5011]
[1718298204841,2.5005,147.97,147.92,2.5012]
[1718298205061,2.5004,147.98,147.93,2.5011]
[1718298205385,2.5008,147.95,147.91,0.02711386]
[1718298205977,2.6709,147.95,147.91,0.02711386]
[1718298206145,0.17,147.95,147.91,2.52851386]
[1718298206342,2.5009,147.95,147.91,0.02711386]
[1718298206735,2.501,147.94,147.91,0.02711386]
[1718298206942,2.5012,147.93,147.91,0.02711386]
[1718298207246,2.6713,147.92,147.91,0.02711386]
[1718298207447,0.68,147.92,147.91,0.02711386]
[1718298207843,3.1813,147.92,147.91,0.02711386]
[1718298210139,246.0034,147.92,147.91,0.02711386]
[1718298210338,279.8778,147.92,147.91,0.02711386]
[1718298210562,54.5651,147.92,147.91,0.02711386]
[1718298210954,154.5651,147.92,147.91,0.02711386]
[1718298211562,154.5651,147.92,147.81,2.5031]
[1718298211563,0.17,147.86,147.81,2.5031]
[1718298211741,0.17,147.86,147.78,5.0071]
[1718298211742,0.17,147.87,147.78,5.0071]
[1718298211947,0.68,147.87,147.78,5.0071]
[1718298212155,2.5023,147.86,147.8,2.5033]
[1718298212361,0.68,147.87,147.8,2.5033]
[1718298212555,0.68,147.87,147.79,2.5034]
[1718298212556,2.8425,147.85,147.79,2.5034]
[1718298212753,2.5025,147.85,147.79,2.5034]
[1718298213683,0.17,147.85,147.8,2.5033]
[1718298213877,0.34,147.85,147.8,2.5033]
[1718298214046,0.34,147.85,147.81,2.5031]
[1718298214370,0.17,147.85,147.81,2.5031]
[1718298214670,0.17,147.84,147.78,20.0]
[1718298214850,0.68,147.84,147.79,2.5034]
[1718298215470,3.1827,147.84,147.78,2.5036]
[1718298215650,0.68,147.84,147.79,2.5035]
[1718298216364,0.17,147.84,147.79,20.0274]
[1718298216670,5.0046,147.87,147.77,16.3524]
[1718298216968,48.1823,147.86,147.8,2.5032]
[1718298217140,45.51,147.86,147.82,2.5029]
[1718298217345,260.16026091,147.94,147.79,21.7993]
[1718298217539,253.1,147.94,147.8,20.17]
[1718298217771,253.1,147.94,147.91,2.5015]
[1718298217986,2.5004,147.98,147.92,2.5012]
[1718298218375,2.5005,147.97,147.92,2.5012]
[1718298218681,390.8,147.99,147.94,2.5009]
[1718298218884,2.5003,147.98,147.93,2.5011]
[1718298219065,2.5005,147.97,147.89,5.0035]
[1718298219260,390.8,147.99,147.91,2.5014]
[1718298219473,2.5011,147.94,147.89,2.5018]
[1718298219776,2.5008,147.95,147.9,2.5016]
[1718298220084,2.5011,147.94,147.88,22.5018]
[1718298220382,2.5011,147.94,147.89,2.5018]
[1718298220856,0.17,147.93,147.89,2.5018]
[1718298221058,0.17,147.93,147.9,2.5016]
[1718298221370,0.17,147.93,147.87,20.0]
[1718298221371,0.34,147.95,147.92,2.5013]
[1718298221571,0.68,147.96,147.89,5.0036]
[1718298221780,0.68,147.96,147.92,2.5013]
[1718298222084,0.34,147.96,147.93,2.501]
[1718298222377,0.34,147.96,147.92,2.5012]
[1718298222579,0.34,147.97,147.92,2.5012]
[1718298222783,0.34,147.97,147.93,2.5011]
[1718298222965,0.34,147.97,147.92,2.5012]
[1718298223781,0.34,147.97,147.93,2.501]
[1718298224583,0.34,147.97,147.94,2.5009]
[1718298224889,0.34,147.97,147.93,2.501]
[1718298225784,2.5002,147.99,147.91,5.0029]
[1718298225980,2.5,148.0,147.95,2.5007]
[1718298226285,2.4997,148.02,147.93,7.5035]
[1718298226455,2.4997,148.02,147.94,5.0019]
[1718298226662,2.4997,148.02,147.96,2.5005]
[1718298226862,2.4997,148.02,147.97,2.5004]
[1718298227169,2.4995,148.03,147.97,2.5004]
[1718298227370,2.4997,148.02,147.97,2.5004]
[1718298227577,2.4997,148.02,147.96,2.5005]
[1718298227978,21.9435,148.04,147.97,2.5004]
[1718298228167,2.4996,148.02,147.97,2.5004]
[1718298228795,2.4998,148.01,147.96,2.5006]
[1718298228967,0.17,148.02,147.96,2.5006]
[1718298229166,0.17,148.02,147.94,5.0019]
[1718298229167,0.17,148.02,147.97,2.5004]
[1718298229365,25.3,148.05,147.98,2.5002]
[1718298229598,25.3,148.07,148.0,2.4999]
[1718298230084,25.3,148.07,147.99,5.0002]
[1718298230085,2.4989,148.07,147.99,5.0002]
[1718298230287,2.4989,148.07,148.01,2.4997]
[1718298230471,2.4989,148.07,148.01,2.4996]
[1718298230672,2.4988,148.07,148.02,2.4996]
[1718298230884,8.9672,148.08,148.03,2.4993]
[1718298231075,2.4985,148.09,148.03,2.4993]
[1718298231390,2.4985,148.09,148.04,2.4993]
[1718298231773,2.4985,148.09,148.03,2.4993]
[1718298231979,2.4986,148.08,148.03,2.4993]
[1718298232308,2.4983,148.1,148.04,2.4992]
[1718298232504,27.8922,148.12,148.04,2.4992]
[1718298232791,4.9967,148.1,148.02,20.0]
[1718298232993,2.4988,148.07,148.02,20.0]
[1718298233177,27.8921,148.12,148.01,20.0]
[1718298233379,2.4985,148.09,148.03,2.4994]
[1718298233577,2.4986,148.08,148.03,2.4994]
[1718298234296,2.4985,148.09,148.04,2.4993]
[1718298234596,0.17,148.07,148.01,20.0]
[1718298234783,2.6688,148.07,148.02,2.4995]
[1718298234968,22.8961,148.12,148.01,29.9989]
[1718298235170,1100.6,148.17,148.01,29.9989]
[1718298235171,5.53833531,148.15,148.08,2.4986]
[1718298235489,2.4978,148.13,148.08,2.4986]
[1718298235877,2.4976,148.14,148.08,2.4986]
[1718298236082,2.4977,148.14,148.09,2.4983]
[1718298236288,25.3,148.15,148.09,2.4983]
[1718298236478,2.4978,148.13,148.04,7.4976]
[1718298236715,2.4978,148.13,148.08,2.4985]
[1718298236992,25.3,148.15,148.04,7.4976]
[1718298236993,2.498,148.12,148.07,2.4988]
[1718298237191,2.4981,148.12,148.06,2.4989]
[1718298237581,0.17,148.1,148.05,2.499]
[1718298237763,7.4931,148.14,148.06,4.9977]
[1718298237764,2.4977,148.14,148.06,4.9977]
[1718298237963,0.17,148.12,148.08,2.4985]
[1718298238165,2.8378,148.13,148.07,2.4987]
[1718298238407,2.4979,148.12,148.07,2.4987]
[1718298238770,2.4978,148.13,148.07,2.4987]
[1718298239095,0.17,148.14,148.07,2.4987]
[1718298239096,2.668,148.12,148.07,2.4987]
[1718298239277,2.498,148.12,148.07,2.4987]
[1718298239898,2.498,148.12,148.06,2.4989]
[1718298240593,0.34,148.11,148.01,20.0]
[1718298240778,2.4984,148.1,148.04,2.4992]
[1718298242178,2.4981,148.11,148.05,2.499]
[1718298242686,2.4982,148.11,148.05,2.499]
[1718298242883,5.1657,148.13,148.05,2.499]
[1718298243086,0.34,148.12,148.05,2.499]
[1718298243384,2.838,148.12,148.06,2.4989]
[1718298244005,2.4981,148.11,148.06,2.4989]
[1718298244414,2.4981,148.11,148.05,2.499]
[1718298244576,2.4981,148.11,148.06,2.4989]
[1718298244776,0.34,148.12,148.07,2.4987]
[1718298245079,47.6678,148.13,148.07,2.4987]
[1718298245601,2.4979,148.12,148.06,2.4988]
[1718298245901,2.498,148.12,148.07,24.3662]
[1718298246200,2.6678,148.13,148.07,24.3662]
[1718298246785,2.4982,148.11,148.06,2.4989]
[1718298246983,0.17,148.13,148.04,17.4949]
[1718298247188,0.8410199,148.16,148.07,4.9975]
[1718298247394,3.3384199,148.16,148.1,2.4982]
[1718298247785,0.8410199,148.16,148.09,2.4983]
[1718298248117,2.4976,148.14,148.09,2.4983]
[1718298248284,2.4975,148.15,148.1,2.4982]
[1718298248890,2.4975,148.15,148.1,3.7961782]
[1718298249091,0.8410199,148.16,148.09,16.508]
[1718298249280,0.8410199,148.16,148.11,2.498]
[1718298249495,0.8410199,148.16,148.12,2.4979]
[1718298250609,2.4974,148.15,148.1,2.4982]
[1718298250811,0.8410199,148.16,148.1,22.4982]
[1718298251007,3.3384199,148.16,148.11,2.498]
[1718298251199,2.4977,148.14,148.09,19.0064]
[1718298251380,2.4978,148.13,148.09,16.508]